Cogmind - Beta 9.6 @@@ ROGUE MODE // 2020.05.15 @ 19:31:16 Player: Alexbot Result: Destroyed by EX-DEC with AWS/EX-DEC Performance ------------- Evolutions (0) 0 Regions Visited (3) 600 Robots Destroyed (23) 115 Value Destroyed (647) 647 Prototype IDs (3) 60 Alien Tech Used (0) 0 Bonus (300) 300 TOTAL SCORE: 1722 Bonus ------- Aligned with FarCom 300 Cogmind --------- Core Integrity 0/250 Matter 191/300 Energy 86/160 System Corruption 11% Temperature Cool (0) Movement Treading (160) Location -10/Exiles Parts ------- > --- POWER (1) -------- Light Nuclear Core > --- PROPULSION (2) --- Light Treads Light Treads > --- UTILITY (2) ------ Insulated Plating > --- WEAPON (2) ------- Latent Energy Streamer Missile Launcher > --- INVENTORY (4) ---- Light Deuterium Engine Improved Utility Shielding System Purifier Katana Peak State ------------ > --- POWER ------------ Light Deuterium Engine > --- PROPULSION ------- Light Treads Light Treads > --- UTILITY ---------- Insulated Plating > --- WEAPON ----------- Latent Energy Streamer Missile Launcher > --- INVENTORY -------- Improved Utility Shielding System Purifier [Rating: 22] Favorites ----------- Power Light Deuterium Engine Engine Light Deuterium Engine Power Core Light Nuclear Core Propulsion Light Treads Treads Light Treads Wheel Compact Wheel Utility Insulated Plating Storage Small Storage Unit Hackware EX Chip 1 Protection Insulated Plating Weapon Particle Cannon Energy Gun EM Pulse Gun Energy Cannon Particle Cannon Ballistic Gun Light Assault Rifle Launcher Missile Launcher Build | -11 -10 -10 -10 ------- Run | Scr Mat Min Exi Slots Evolved . | . . . . Power . | . . . . Propulsion . | . . . . Utility . | . . . . Weapon . | . . . . Parts Attached 29 | 6 2 9 12 Power 3 | 1 . 1 1 Engine 2 | 1 . 1 . Core 1 | . . . 1 Reactor . | . . . . Propulsion 4 | 2 . 2 . Treads 2 | . . 2 . Leg . | . . . . Wheel 2 | 2 . . . Hover . | . . . . Flight . | . . . . Utility 12 | 1 . 2 9 Device . | . . . . Storage 4 | 1 . . 3 Processor . | . . . . Hackware 2 | . . . 2 Protection 6 | . . 2 4 Artifact . | . . . . Weapon 10 | 2 2 4 2 Energy Gun 1 | 1 . . . Energy Cannon 6 | . 2 3 1 Ballistic Gun 1 | 1 . . . Ballistic Cannon . | . . . . Launcher 2 | . . 1 1 Special Weapon . | . . . . Impact Weapon . | . . . . Slashing Weapon . | . . . . Piercing Weapon . | . . . . Special Melee Weapon . | . . . . Unidentified Prototypes 1 | . . . 1 Parts Lost 6 | . . 3 3 Power . | . . . . Propulsion 2 | . . 2 . Utility 1 | . . . 1 Weapon 3 | . . 1 2 Highest Loss Streak 2 | . . 1 2 Average Slot Usage (%) 87 | . 85 96 83 Engine 13 | . 14 14 13 Treads 22 | . . 15 28 Wheel 5 | . 28 12 . Storage 8 | . 14 14 5 Protection 11 | . . 11 13 Energy Cannon 17 | . 23 27 12 Launcher 5 | . . . 8 Naked Turns . | . . . . Heaviest Build 95 | 12 17 22 95 Greatest Support 40 | 26 26 40 40 Greatest Overweight (x) 2 | . . 1 2 Average Overweight (x) . | . . . . Largest Inventory Capacity 24 | 6 6 6 24 Average Capacity 7 | 5 6 6 8 Most Carried 17 | 4 6 6 17 Average Carried 5 | 3 5 4 5 Final Capacity 6 | 6 6 6 4 Final Carried 6 | 4 6 6 4 Class Distribution -------------------- 85% | Mutant 14% | Hauler-Mutant Dominant Class ---------------- Mutant | -10/Materials Mutant | -10/Mines Mutant | -10/Exiles Resources | -11 -10 -10 -10 ----------- Run | Scr Mat Min Exi Matter Collected 517 | 260 20 101 136 Remotely . | . . . . Salvage Created 718 | . 364 348 6 Parts 41 | . 18 22 1 Haulers Intercepted . | . . . . Recyclers Shooed . | . . . . Parts Field Recycled . | . . . . Retrieved Matter . | . . . . Parts Self-Destructed . | . . . . Prevented . | . . . . Kills | -11 -10 -10 -10 ------- Run | Scr Mat Min Exi Combat Hostiles Destroyed 17 | . 7 10 . Cannons 14 | . 7 7 . AOE 3 | . . 3 . Classes Destroyed 7 | . 3 2 2 Tunneler 2 | . . 2 . Operator 1 | . 1 . . Turret 1 | . . . 1 Watcher 1 | . 1 . . Swarmer 3 | . . 3 . Grunt 14 | . 7 7 . Zionite 1 | . . . 1 Best Kill Streak 3 | . 3 3 1 Combat Bots Only 3 | . 3 3 . Max Kills in Single Turn 2 | . 1 2 1 Gunslinging . | . . . . Exploded 2 | . . 2 . Melee . | . . . . Uniques/NPCs Destroyed 2 | . . . 2 EX-BIN (-10/Exiles) 8R-AWN (-10/Exiles) Combat | -11 -10 -10 -10 -------- Run | Scr Mat Min Exi Damage Taken 1248 | . 161 442 645 Core 253 | . 32 81 140 Absorbed by Shields . | . . . . Core Remaining (%) 100 | 100 . . . Volleys Fired 64 | . 22 29 13 Largest 2 | . 2 2 1 Hottest 143 | . 136 143 75 Shots Fired 111 | . 44 54 13 Gun 2 | . 2 . . Cannon 97 | . 42 51 4 Launcher 12 | . . 3 9 Special . | . . . . Kinetic . | . . . . Thermal 94 | . 42 51 1 Explosive 12 | . . 3 9 Electromagnetic 5 | . 2 . 3 Robot Hit Streak 12 | . 8 12 4 Robot Miss Streak 3 | . 3 3 1 Penetration Max . | . . . . Secondary Targets . | . . . . Shots Hit Robots 57 | . 24 31 2 Core Hits 34 | . 11 15 8 Critical Hits . | . . . . Critical Kills . | . . . . Critical Parts Destroyed . | . . . . Melee Attacks . | . . . . Impact . | . . . . Slashing . | . . . . Piercing . | . . . . Sneak Attacks . | . . . . Combat Hostiles . | . . . . Follow-up Attacks . | . . . . Damage Inflicted 1918 | . 512 1014 392 Guns . | . . . . Cannons 1264 | . 512 752 . Explosions 654 | . . 262 392 Melee . | . . . . Ramming . | . . . . Kinetic . | . . . . Thermal 1264 | . 512 752 . Explosive 597 | . . 262 335 Electromagnetic 57 | . . . 57 Impact . | . . . . Slashing . | . . . . Piercing . | . . . . Highest Corruption 11 | . . . 11 Average Corruption 1 | . . . 1 Corruption Purged . | . . . . Effects 5 | . . . 5 Message Errors 3 | . . . 3 Energy Discharges 1 | . . . 1 Data Loss (major) 1 | . . . 1 Overload Shots . | . . . . Overflow Damage 46 | . 17 27 2 Projectiles 30 | . 17 13 . Explosions 16 | . . 14 2 Melee . | . . . . Knockbacks . | . . . . Impact . | . . . . Kinetic . | . . . . Secondary . | . . . . Self-Inflicted Damage 84 | . . . 84 Shots 1 | . . . 1 Rammed . | . . . . Targets Rammed . | . . . . Kicked . | . . . . Crushed . | . . . . Highest Temperature 482 | . 327 482 103 Average Temperature 144 | . 139 184 34 Received Heat Transfer 321 | . 93 228 . Effects 3 | . . 3 . Shutdowns 2 | . . 2 . Interference 1 | . . 1 . Siege Activations . | . . . . Robots Corrupted . | . . . . Combat Hostiles . | . . . . Parts Fried . | . . . . Impact Corruptions . | . . . . Robots Melted . | . . . . Combat Hostiles . | . . . . Parts Melted 3 | . 3 . . Heat Transferred 2183 | . 925 1258 . Parts Sabotaged . | . . . . Parts Stolen . | . . . . Parts Stripped . | . . . . Power Chain Reactions . | . . . . Missiles Intercepted . | . . . . Latent Energy Used 600 | . . . 600 LE Corruption 9 | . . . 9 Alert | -11 -10 -10 -10 ------- Run | Scr Mat Min Exi Peak Influence 277 | . 277 233 . Average Influence 125 | . 107 138 . Maximum Alert Level 1 | . 1 1 . Low Security (%) 90 | 100 75 94 . Level 1 9 | . 24 5 . Level 2 . | . . . . Level 3 . | . . . . Level 4 . | . . . . Level 5 . | . . . . High Security . | . . . . Max Security . | . . . . Squads Dispatched 3 | . 2 1 . Investigation 1 | . . 1 . Extermination . | . . . . Reinforcement 2 | . 2 . . Assault . | . . . . Garrison . | . . . . Intercept . | . . . . Construction Impeded . | . . . . Haulers Reinforced . | . . . . Stealth | -11 -10 -10 -10 --------- Run | Scr Mat Min Exi Distress Signals 2 | . 2 . . Communications Jammed . | . . . . Distress Signals . | . . . . Times Spotted 78 | . 12 14 52 Peak Tracking Total 11 | . 3 3 11 Tactical Retreats 16 | . . 4 12 Traps | -11 -10 -10 -10 ------- Run | Scr Mat Min Exi Traps Triggered . | . . . . Indirectly . | . . . . Trap Hack Attempts . | . . . . Triggered . | . . . . Disarmed . | . . . . Reprogrammed . | . . . . Reused . | . . . . Traps Extracted . | . . . . Installed . | . . . . Triggered . | . . . . Machines | -11 -10 -10 -10 ---------- Run | Scr Mat Min Exi Machines Disabled 12 | . 1 1 10 Max in Single Turn 3 | . 1 1 3 Machines Sabotaged . | . . . . Garrisons Compromised . | . . . . Overloaded Fab Kills . | . . . . Fab Network Shutdowns . | . . . . Hacking | -11 -10 -10 -10 --------- Run | Scr Mat Min Exi Machines Accessed 4 | . 2 2 . Terminals 2 | . 2 . . Fabricators . | . . . . Repair Stations . | . . . . Recycling Units . | . . . . Scanalyzers . | . . . . Garrison Access . | . . . . Total Hacks 6 | . 4 2 . Successful 5 | . 3 2 . Failed 1 | . 1 . . Catastrophic 1 | . 1 . . Database Lockouts . | . . . . Manual 1 | . . . 1 Terminals 4 | . 4 . . Fabricators . | . . . . Repair Stations . | . . . . Recycling Units . | . . . . Scanalyzers . | . . . . Garrison Access . | . . . . Terminal Hacks 5 | . 3 2 . Prototype ID Bank 1 | . 1 . . Open Door 2 | . . 2 . Branch Access Points 1 | . 1 . . Hauler Manifests 1 | . 1 . . Fabricator Hacks . | . . . . Repair Station Hacks . | . . . . Recycling Unit Hacks . | . . . . Scanalyzer . | . . . . Garrison Access Hacks . | . . . . Unauthorized Hacks . | . . . . Terminals . | . . . . Fabricators . | . . . . Repair Stations . | . . . . Recycling Units . | . . . . Scanalyzers . | . . . . Garrison Access . | . . . . Data Cores Recovered . | . . . . Used . | . . . . Hacking Detections 2 | . 2 . . Full Trace Events . | . . . . Feedback Events . | . . . . Feedback Blocked . | . . . . Robot Schematics Acquired . | . . . . Robots Built . | . . . . Matter . | . . . . Time . | . . . . Total Robot Build Rating . | . . . . Part Schematics Acquired . | . . . . Parts Built . | . . . . Matter . | . . . . Time . | . . . . Total Part Build Rating . | . . . . Parts Repaired . | . . . . Time . | . . . . Parts Recycled . | . . . . Recycled Matter . | . . . . Retrieved Matter . | . . . . Retrieved Components . | . . . . Parts Scanalyzed . | . . . . Part Schematics Acquired . | . . . . Parts Damaged . | . . . . Bothacking | -11 -10 -10 -10 ------------ Run | Scr Mat Min Exi Used RIF Installer . | . . . . Robots Hacked . | . . . . Non-combat . | . . . . Combat . | . . . . Robot Hacks Applied . | . . . . Relay Couplers Released . | . . . . Robots Rewired . | . . . . Allies Hacked . | . . . . Hacks Repelled . | . . . . Allies | -11 -10 -10 -10 -------- Run | Scr Mat Min Exi Total Allies . | . . . . Largest Group . | . . . . Highest-Rated Group . | . . . . Highest-Rated Ally . | . . . . Total Orders . | . . . . Ally Attacks 44 | . . . 44 Total Damage 2014 | . . . 2014 Kills 13 | . . . 13 Allies Corrupted . | . . . . Allies Melted . | . . . . Turrets Deployed 3 | . . . 3 Intel | -11 -10 -10 -10 ------- Run | Scr Mat Min Exi Robot Analysis Total . | . . . . Derelict Logs Recovered 1 | . . 1 . Drone Launches . | . . . . Drone Recoveries . | . . . . Exploration | -11 -10 -10 -10 ------------- Run | Scr Mat Min Exi Turns Passed 2875 | 40 229 738 1868 Spaces Moved 1739 | 32 166 485 1056 Core 5 | 5 . . . Treads 1244 | . . 188 1056 Legs . | . . . . Wheels 490 | 27 166 297 . Hover . | . . . . Flight . | . . . . Fastest Speed 50 | 50 90 90 160 Average Speed 145 | 84 90 119 167 Slowest Speed 200 | 100 90 180 200 Overloaded Moves . | . . . . Propulsion Burnouts . | . . . . Robots Hopped 3 | . . . 3 Cave-ins Triggered . | . . . . Exploration Rate (%) 57 | 3 45 97 83 Regions Visited 3 Branch Regions 2 Pre-discovered Areas . | . . . . Known Exits Taken 1 | . 1 . . Unknown Exits Taken 2 | 1 . 1 . Scrap Searched 1 | . . 1 . Spaces Dug . | . . . . Terrain Destroyed 56 | . . 16 40 Melee . | . . . . Projectile 10 | . . 10 . AOE 46 | . . 6 40 Actions | -11 -10 -10 -10 --------- Run | Scr Mat Min Exi Total 1970 | 42 200 590 1138 Wait 97 | . 8 57 32 Move 1730 | 31 165 484 1050 Hop 3 | . . . 3 Pick Up 28 | 5 2 6 15 Fast Attach 14 | 5 1 1 7 Attach 7 | 1 . 3 3 Detach 6 | . . . 6 Swap 8 | . 1 5 2 Drop 13 | . 1 5 7 Fire 64 | . 22 29 13 Melee . | . . . . Ram . | . . . . Kick . | . . . . Crush . | . . . . Escape Stasis . | . . . . Rewire . | . . . . Trap . | . . . . Miscellaneous . | . . . . Route ------- -11/Scrapyard -10/Materials (discovered 2 exits: *Min x2) -10/Mines (discovered 3 exits: [*Mat x2] / *Exi) -10/Exiles (discovered 1 exit: [*Min]) History --------- Turn | Location | Event 25 | -11/Scrapyard | Discovered new exit (range 16) 41 | -11/Scrapyard | Entered Materials 232 | -10/Materials | Identified exit to Mines 270 | -10/Materials | Entered Mines 306 | -10/Mines | Build established: Mutant 415 | -10/Mines | Met a Derelict shopkeep closing up shop 655 | -10/Mines | Discovered new exit (range 6) 787 | -10/Mines | Discovered new exit (range 14) 911 | -10/Mines | Learned 2 Materials zone layouts 939 | -10/Mines | Met a Derelict who couldn't figure out how to use a Trap Extractor 1002 | -10/Mines | Deemed a non-threat by the Exiles lab entrance 1002 | -10/Mines | Discovered new exit (range 5) 1008 | -10/Mines | Entered Exiles 1045 | -10/Exiles | Met 8R-AWN 1076 | -10/Exiles | Met EX-HEX 1117 | -10/Exiles | Met EX-BIN 1136 | -10/Exiles | Met EX-DEC 1386 | -10/Exiles | Aligned with FarCom system 1388 | -10/Exiles | Given EX-Vault access code 1436 | -10/Exiles | Opened EX-Vault 1446 | -10/Exiles | Found Prototype Energy Cannon 1453 | -10/Exiles | Found Prototype Ballistic Gun 1456 | -10/Exiles | Found Deploy-a-Sentry 1459 | -10/Exiles | Found Deploy-a-Sentry 1462 | -10/Exiles | Found Deploy-a-Sentry 1499 | -10/Exiles | Warned to stay clear of 0b10 Research branches 1533 | -10/Exiles | Build established: Hauler-Mutant 1590 | -10/Exiles | DAS Turret deployed 1601 | -10/Exiles | DAS Turret deployed 1603 | -10/Exiles | DAS Turret deployed 1689 | -10/Exiles | Attacked by the Exiles 1698 | -10/Exiles | Allies destroyed EX-BIN 1702 | -10/Exiles | Core integrity fell below 50% 1759 | -10/Exiles | Allies destroyed 8R-AWN 1870 | -10/Exiles | Found Prototype Device 1952 | -10/Exiles | Build established: Mutant 2149 | -10/Exiles | Discovered new exit (range 14) 2584 | -10/Exiles | Identified Latent Energy Streamer 2870 | -10/Exiles | System corruption reached 10% 2871 | -10/Exiles | Core integrity fell below 20% 2876 | -10/Exiles | Destroyed by EX-DEC with AWS/EX-DEC Last Messages --------------- 02547_ W1-DM0 destroyed. 02555_ Acquired 9 matter. 02584_ Identified Latent Energy Streamer. 02596_ Acquired Katana. 02621_ GM-J5T destroyed. 02701_ HHS1XBFJGMHJ|KE4CQKQ 02741_ Acquired Lgt. Nuclear Core. 02762_ Destroyed Mak. Power Source. 02771_ Destroyed Mak. Leg. 02771_ DK-RAY knocked back. 02775_ DK-RAY destroyed. 02801_ FE&B&A